bitfinex/quotes_SOLUSD_20220101
["timestamp","ask_amount","ask_price","bid_price","bid_amount"]
[1641015100643,10.961095,173.94,173.84,33.58579428]
[1641015101449,11.221095,173.94,173.84,33.58579428]
[1641015104149,10.221095,173.94,173.84,33.58579428]
[1641015104750,10.221095,173.94,173.83,77.5908]
[1641015104951,10.221095,173.94,173.78,1.2627]
[1641015105153,8.6314,173.87,173.78,1.7627]
[1641015105352,8.6314,173.87,173.78,0.5]
[1641015105753,8.6314,173.87,173.79,28.45731319]
[1641015105953,8.6314,173.87,173.79,28.95731319]
[1641015107458,8.6307,173.88,173.79,37.58821319]
[1641015107657,8.6307,173.88,173.79,37.84821319]
[1641015109160,8.6307,173.88,173.79,37.58821319]
[1641015109357,8.6307,173.88,173.79,28.45731319]
[1641015110983,8.8907,173.88,173.76,77.612]
[1641015111182,9.3907,173.88,173.75,73.6963]
[1641015111381,9.3907,173.88,173.75,73.9563]
[1641015111786,12.65786595,173.88,173.75,0.26]
[1641015111985,12.65786595,173.88,173.74,27.38007402]
[1641015112384,12.65786595,173.88,173.74,27.64007402]
[1641015112585,1.2557,173.87,173.74,27.64007402]
[1641015112786,8.6339,173.82,173.74,27.64007402]
[1641015112986,28.7797,173.86,173.74,27.64007402]
[1641015113186,1.2557,173.87,173.74,27.64007402]
[1641015113395,1.2557,173.87,173.74,29.0667677]
[1641015113787,1.2557,173.87,173.74,39.0464677]
[1641015113988,1.7557,173.87,173.74,37.35977402]
[1641015114188,1.2557,173.87,173.74,28.72647402]
[1641015114392,1.2557,173.87,173.74,27.38007402]
[1641015114588,1.2557,173.87,173.74,27.64007402]
[1641015114788,2.0157,173.87,173.74,27.64007402]
[1641015114993,8.6336,173.82,173.74,8.6333]
[1641015115195,2.0157,173.87,173.73,264.5]
[1641015115390,0.26,173.82,173.73,264.5]
[1641015115588,3.26716595,173.85,173.73,264.5]
[1641015115990,28.7918,173.79,173.73,290.62433256]
[1641015116188,28.82,173.78,173.73,290.62433256]
[1641015116389,28.82,173.81,173.73,290.62433256]
[1641015116592,0.26,173.81,173.73,290.62433256]
[1641015116790,3.26716595,173.82,173.73,290.62433256]
[1641015116991,3.26716595,173.82,173.73,290.88433256]
[1641015117191,0.5,173.85,173.73,290.62433256]
[1641015117391,1.3603,173.87,173.73,290.88433256]
[1641015117792,8.6332,173.84,173.73,299.51753256]
[1641015117990,8.6332,173.84,173.74,1.2416]
[1641015118591,8.6332,173.84,173.73,290.62433256]
[1641015118992,9.3932,173.84,173.73,290.62433256]
[1641015119393,8.6332,173.84,173.73,290.62433256]
[1641015119595,8.8932,173.84,173.73,290.62433256]
[1641015119992,10.2054,173.84,173.73,290.62433256]
[1641015120194,9.9454,173.84,173.73,290.62433256]
[1641015120694,9.9454,173.84,173.73,290.88433256]
[1641015120895,9.9454,173.84,173.73,196.38433256]
[1641015121496,10.2054,173.84,173.73,196.38433256]
[1641015122210,10.2054,173.84,173.73,196.12433256]
[1641015122596,10.2054,173.84,173.73,195.62433256]
[1641015124301,10.7054,173.84,173.73,195.62433256]
[1641015124502,10.2054,173.84,173.73,195.62433256]
[1641015124703,8.6332,173.84,173.73,195.62433256]
[1641015124901,8.6332,173.84,173.73,196.38433256]
[1641015125702,8.6322,173.86,173.73,211.62863256]
[1641015125901,3.26716595,173.87,173.73,211.62863256]
[1641015126302,3.26716595,173.88,173.73,211.62863256]
[1641015126601,3.26716595,173.88,173.74,78.8889]
[1641015126802,11.89806595,173.88,173.8,22.6828712]
[1641015127002,8.6309,173.88,173.8,22.6828712]
[1641015127602,1.60241027,173.85,173.8,22.9428712]
[1641015127801,1.60241027,173.85,173.8,22.6828712]
[1641015128402,1.60241027,173.85,173.8,22.9428712]
[1641015129002,1.60241027,173.85,173.8,31.5728712]
[1641015129202,1.60241027,173.87,173.8,31.5728712]
[1641015129627,1.60241027,173.87,173.8,22.6828712]
[1641015130603,1.60241027,173.85,173.8,22.6828712]
[1641015131603,10.23481027,173.85,173.8,22.6828712]
[1641015132004,1.60241027,173.84,173.8,22.6828712]
[1641015132209,1.60241027,173.84,173.74,77.6166]
[1641015132406,1.60241027,173.82,173.74,77.6166]
[1641015132805,1.60241027,173.82,173.74,87.0096]
[1641015133204,1.60241027,173.83,173.75,28.78002299]
[1641015133504,1.60241027,173.83,173.75,29.54002299]
[1641015133703,1.60241027,173.85,173.75,38.17222299]
[1641015133905,1.60241027,173.85,173.75,39.42382299]
[1641015134908,8.6324,173.85,173.75,39.42382299]
[1641015135506,10.23481027,173.85,173.75,39.42382299]
[1641015136206,1.60241027,173.85,173.75,39.42382299]
[1641015136407,1.60241027,173.85,173.75,45.64382299]
[1641015136707,1.60241027,173.86,173.75,45.64382299]
[1641015137306,1.60241027,173.87,173.75,45.64382299]
[1641015137906,8.6303,173.89,173.75,45.64382299]
[1641015138109,1.60241027,173.93,173.76,1.42669368]
[1641015138507,1.333395,173.94,173.76,1.42669368]
[1641015138508,1.333395,173.94,173.76,2.18669368]
[1641015138710,1.333395,173.94,173.8,28.7583]
[1641015138911,1.333395,173.94,173.81,1.2379]
[1641015139111,1.333395,173.94,173.82,29.80820975]
[1641015139513,1.333395,173.94,173.82,31.99490343]
[1641015139714,1.333395,173.94,173.83,1.42669368]
[1641015139915,1.333395,173.94,173.83,1.92669368]
[1641015140116,1.333395,173.94,173.83,2.18669368]
[1641015140615,1.333395,173.94,173.86,8.6272]
[1641015141017,1.333395,173.94,173.86,9.3872]
[1641015141218,1.333395,173.94,173.86,15.4132]
[1641015142213,1.333395,173.94,173.86,9.3872]
[1641015143418,1.333395,173.94,173.86,16.8812]
[1641015144420,1.333395,173.94,173.86,9.3872]
[1641015144836,1.333395,173.94,173.87,1.42669368]
[1641015145041,1.333395,173.94,173.91,28.41344032]
[1641015145442,1.333395,173.94,173.91,29.17344032]
[1641015146238,1.333395,173.94,173.92,8.6234]
[1641015146641,1.333395,173.94,173.91,28.41344032]
[1641015146842,1.333395,173.94,173.88,1.3063]
[1641015147141,1.333395,173.94,173.88,1.5663]
[1641015147340,1.333395,173.94,173.88,2.0663]
[1641015147543,1.333395,173.94,173.88,10.6922]
[1641015147944,1.333395,173.94,173.89,23.72936664]
[1641015148343,1.333395,173.94,173.89,24.48936664]
[1641015148543,1.333395,173.94,173.91,8.6247]
[1641015149045,1.333395,173.94,173.91,9.3847]
[1641015149446,1.333395,173.94,173.89,32.35486664]
[1641015149847,1.333395,173.94,173.89,32.61486664]
[1641015150246,1.333395,173.94,173.89,23.98936664]
[1641015150452,1.333395,173.94,173.84,1.42669368]
[1641015150648,1.333395,173.94,173.83,75.8555]
[1641015150849,0.833395,173.94,173.83,75.3555]
[1641015151046,1.093395,173.94,173.83,75.3555]
[1641015151447,1.093395,173.94,173.84,31.4193443]
[1641015151647,9.721395,173.94,173.84,31.4193443]
[1641015152246,10.221395,173.94,173.84,31.4193443]
[1641015152447,28.82,173.93,173.84,31.4193443]
[1641015152647,28.82,173.93,173.81,1.32]
[1641015152648,8.6311,173.89,173.79,94.5]
[1641015153447,1.2439,173.91,173.79,96.68669368]
[1641015153649,9.8735,173.91,173.81,8.6293]
[1641015153848,9.8735,173.91,173.81,9.1293]
[1641015154049,9.8735,173.91,173.81,9.3893]
[1641015154249,8.6296,173.91,173.81,9.3893]
[1641015154450,8.6296,173.91,173.81,8.8893]
[1641015154849,8.6296,173.91,173.81,9.3893]
[1641015155049,8.6296,173.91,173.81,8.8893]
[1641015155749,8.6296,173.91,173.81,9.3893]
[1641015156150,8.6286,173.93,173.82,1.42669368]
[1641015156350,8.6286,173.93,173.83,8.6285]
[1641015156550,8.6286,173.93,173.83,8.8885]
[1641015156750,8.6286,173.93,173.83,10.81519368]
[1641015158155,8.6286,173.93,173.83,10.31519368]
[1641015158355,8.6286,173.93,173.83,10.81519368]
[1641015158654,2.072395,173.94,173.83,10.31519368]
[1641015158853,2.072395,173.94,173.83,17.35719368]
[1641015159054,0.833395,173.94,173.83,17.35719368]
[1641015160459,0.833395,173.94,173.84,1.2444]
[1641015160659,0.833395,173.94,173.88,8.6261]
[1641015160856,0.833395,173.94,173.89,25.38540323]
[1641015161056,0.833395,173.94,173.89,25.64540323]
[1641015161256,0.833395,173.94,173.89,25.38540323]
[1641015163762,0.833395,173.94,173.89,25.88540323]
[1641015164161,0.833395,173.94,173.89,26.14540323]
[1641015164360,0.833395,173.94,173.89,34.77120323]
[1641015164561,0.833395,173.94,173.89,34.01120323]
[1641015164763,0.833395,173.94,173.89,25.38540323]
[1641015166964,0.833395,173.94,173.89,25.64540323]
[1641015167764,0.833395,173.94,173.89,26.14540323]
[1641015167964,0.833395,173.94,173.89,25.64540323]
[1641015169566,0.833395,173.94,173.89,25.38540323]
[1641015173266,2.43580527,173.94,173.85,80.0154]
[1641015173866,11.06360527,173.94,173.85,80.2754]
[1641015174265,11.06360527,173.94,173.86,30.14820364]
[1641015175868,1.60241027,173.93,173.86,30.14820364]
[1641015176072,10.23061027,173.93,173.86,30.40820364]
[1641015177070,8.6282,173.93,173.86,30.40820364]
[1641015177768,10.23061027,173.93,173.86,30.14820364]
[1641015178367,1.60241027,173.93,173.86,30.14820364]
[1641015178569,1.60241027,173.93,173.86,32.33489732]
[1641015178767,1.60241027,173.93,173.86,40.96209732]
[1641015179168,0.833395,173.94,173.86,40.96209732]
[1641015180170,0.833395,173.94,173.86,40.46209732]
[1641015180371,0.833395,173.94,173.86,40.96209732]
[1641015181171,0.833395,173.94,173.86,40.46209732]
[1641015181771,0.833395,173.94,173.86,40.70209732]
[1641015181970,2.43580527,173.94,173.86,40.70209732]
[1641015182378,0.833395,173.94,173.86,40.20209732]
[1641015182873,0.833395,173.94,173.86,40.70209732]
[1641015183071,0.833395,173.94,173.86,40.96209732]
[1641015188177,0.833395,173.94,173.86,40.46209732]
[1641015188379,0.833395,173.94,173.86,40.96209732]
[1641015189780,0.833395,173.94,173.86,40.46209732]
[1641015189979,0.833395,173.94,173.86,40.96209732]
[1641015190184,0.833395,173.94,173.86,40.46209732]
[1641015190383,0.833395,173.94,173.86,40.96209732]
[1641015190782,0.833395,173.94,173.86,40.46209732]
[1641015190984,0.833395,173.94,173.86,40.20209732]
[1641015192286,0.833395,173.94,173.86,40.70209732]
[1641015192487,0.833395,173.94,173.86,40.46209732]
[1641015192892,0.833395,173.94,173.86,40.96209732]
[1641015196707,0.833395,173.94,173.86,40.46209732]
[1641015196912,0.833395,173.94,173.86,40.96209732]
[1641015197409,0.833395,173.94,173.86,40.46209732]
[1641015197808,0.833395,173.94,173.86,40.96209732]
[1641015206925,0.833395,173.94,173.87,1.2684]
[1641015207126,0.833395,173.94,173.9,8.624]
[1641015207526,0.833395,173.94,173.9,9.384]
[1641015207829,0.833395,173.94,173.9,10.81069368]
[1641015209834,0.833395,173.94,173.9,16.87767462]
[1641015210232,1.60241027,174.01,173.9,16.87767462]
[1641015211239,3.93580527,174.01,173.9,16.87767462]
[1641015211440,3.93580527,174.01,173.96,8.6214]
[1641015211641,2.333395,174.01,173.97,32.00869571]
[1641015211840,2.333395,174.01,173.97,32.50869571]
[1641015212662,2.333395,174.01,173.99,8.6214]
[1641015212864,8.39779494,174.01,173.99,9.1214]
[1641015213062,8.39779494,174.01,173.99,8.6214]
[1641015213667,8.39779494,174.01,173.99,9.1214]
[1641015213863,8.39779494,174.01,173.99,8.6214]
[1641015214464,8.39779494,174.01,173.99,9.1214]
[1641015214665,2.333395,174.01,173.99,8.6214]
[1641015215066,0.003395,174.01,173.99,10.04809368]
[1641015215266,1.60241027,174.03,173.99,10.80809368]
[1641015215664,3.26716595,174.07,173.99,16.87507462]
[1641015216068,2.333395,174.03,173.99,16.87507462]
[1641015216270,3.26716595,174.11,174.0,9.62433532]
[1641015216468,3.26716595,174.11,174.06,25.84473326]
[1641015216872,3.26716595,174.11,174.06,28.03142694]
[1641015217072,3.26716595,174.13,174.06,28.03142694]
[1641015217470,3.26716595,174.13,174.06,27.27142694]
[1641015217672,3.26716595,174.14,174.08,8.6166]
[1641015218270,3.26716595,174.14,174.08,9.1166]
[1641015218471,3.26716595,174.14,174.08,8.6166]
[1641015219876,2.40326109,174.1,174.08,8.6166]
[1641015220472,2.40326109,174.1,174.08,9.1166]
[1641015220675,2.40326109,174.1,174.08,8.6166]
[1641015221277,2.40326109,174.1,174.08,9.1166]
[1641015222375,2.40326109,174.1,174.08,8.6166]
[1641015222577,2.40326109,174.1,174.08,8.8766]
[1641015222779,2.40326109,174.1,174.08,9.3766]
[1641015223578,2.40326109,174.1,174.08,10.80329368]
[1641015224079,2.40326109,174.1,174.08,10.54329368]
[1641015224479,2.40326109,174.1,174.08,8.6166]
[1641015224877,2.40326109,174.1,174.08,9.1166]
[1641015225079,2.40326109,174.1,174.08,8.6166]
[1641015225478,2.40326109,174.1,174.08,10.30329368]
[1641015226880,2.40326109,174.1,174.08,10.80329368]
[1641015227079,2.40326109,174.1,174.08,10.54329368]
[1641015228484,2.40326109,174.1,174.08,10.80329368]
[1641015228685,2.40326109,174.1,174.08,10.30329368]
[1641015228888,2.40326109,174.1,174.08,10.54329368]
[1641015229487,2.40326109,174.1,174.08,10.04329368]
[1641015229701,2.40326109,174.1,174.08,10.54329368]
[1641015231118,2.40326109,174.1,174.08,10.04329368]
[1641015231816,2.40326109,174.1,174.08,10.54329368]
[1641015232417,2.40326109,174.1,174.08,10.04329368]
[1641015233017,2.40326109,174.1,174.08,10.80329368]
[1641015233416,2.40326109,174.1,174.08,10.30329368]
[1641015233916,2.40326109,174.1,174.08,10.80329368]
[1641015234116,2.40326109,174.1,174.08,10.30329368]
[1641015234715,2.40326109,174.1,174.08,10.80329368]
[1641015235119,2.40326109,174.1,174.08,10.30329368]
[1641015235316,2.40326109,174.1,174.08,10.80329368]
[1641015241226,3.26716595,174.17,174.08,10.80329368]
[1641015241627,4.60936595,174.19,174.08,10.80329368]
[1641015241827,4.60936595,174.19,174.14,8.6129]
[1641015242028,3.26716595,174.21,174.15,24.35357512]
[1641015242627,3.26716595,174.2,174.15,24.35357512]
[1641015243627,3.26716595,174.2,174.17,8.6129]
[1641015243830,6.06439994,174.19,174.17,8.6129]
[1641015245630,3.03219997,174.19,174.17,8.6129]
[1641015246028,3.03219997,174.18,174.17,8.6129]
[1641015246228,3.03219997,174.19,174.17,8.6129]
[1641015246731,3.26716595,174.21,174.17,8.6129]
[1641015247331,9.79754048,174.21,174.17,8.6129]
[1641015248133,1.3312,174.23,174.17,8.6129]
[1641015250036,3.26716595,174.24,174.17,8.6129]
[1641015250236,3.26716595,174.24,174.17,9.1129]
[1641015251137,1.2786,174.25,174.17,9.1129]
[1641015251342,1.2786,174.25,174.17,8.6129]
[1641015252838,1.2786,174.25,174.17,9.1129]
[1641015253038,1.2786,174.25,174.17,8.6129]
[1641015255340,1.2786,174.25,174.17,8.8729]
[1641015255541,1.2786,174.25,174.17,9.3729]
[1641015255946,1.2786,174.25,174.17,10.79959368]
[1641015256143,4.54576595,174.25,174.17,10.53959368]
[1641015256343,4.54576595,174.25,174.17,10.03959368]
[1641015256541,4.54576595,174.25,174.17,8.6129]
[1641015256542,4.80576595,174.25,174.17,8.6129]
[1641015256942,7.0826,174.25,174.17,8.6129]
[1641015257365,15.9547,174.25,174.06,83.03818094]
[1641015257565,15.9547,174.25,174.07,77.5364]
[1641015257766,38.51283915,174.24,174.08,28.7155]
[1641015257967,39.27283915,174.24,174.08,29.2155]
[1641015258270,39.27283915,174.24,174.09,31.48148022]
[1641015258467,39.27283915,174.24,174.09,31.74148022]
[1641015258468,3.26716595,174.22,174.09,31.74148022]
[1641015258671,8.6149,174.2,174.12,8.6146]
[1641015259669,11.88206595,174.2,174.09,31.74148022]
[1641015260468,9.9323,174.19,174.11,8.6151]
[1641015260668,19.73068644,174.19,174.11,8.6151]
[1641015261178,13.19946595,174.19,174.11,8.6151]
[1641015261669,13.19946595,174.19,174.09,31.74148022]
[1641015261869,13.19946595,174.19,174.1,8.6156]
[1641015263172,6.53141526,174.18,174.1,8.6156]
[1641015264774,9.9323,174.19,174.1,8.6156]
[1641015268381,9.9323,174.19,174.09,31.74148022]
[1641015268584,1.3171,174.19,174.09,31.74148022]
[1641015268984,1.3171,174.19,174.1,1.42669368]
[1641015269382,3.26716595,174.22,174.14,8.6134]
[1641015269582,4.61606595,174.23,174.14,8.6134]
[1641015270284,1.3489,174.23,174.14,8.6134]
[1641015270786,1.3489,174.23,174.14,8.8734]
[1641015271884,1.3489,174.23,174.14,8.6134]
[1641015272086,1.3489,174.23,174.14,8.8734]
[1641015273287,1.3489,174.23,174.14,9.3734]
[1641015273888,1.3489,174.23,174.14,10.80009368]
[1641015274688,1.3489,174.23,174.14,12.10269368]
[1641015275792,1.3489,174.23,174.14,11.60269368]
[1641015276195,1.3489,174.23,174.14,12.10269368]
[1641015277193,1.3489,174.23,174.14,11.60269368]
[1641015277392,1.3489,174.23,174.14,12.10269368]
[1641015277592,1.3489,174.23,174.14,11.60269368]
[1641015277793,1.3489,174.23,174.14,12.10269368]
[1641015278095,3.26716595,174.24,174.14,12.10269368]
[1641015279193,3.26716595,174.24,174.14,11.84269368]
[1641015280594,3.26716595,174.24,174.14,12.10269368]
[1641015281698,4.51666595,174.24,174.14,12.10269368]
[1641015282095,4.51666595,174.24,174.14,11.84269368]
[1641015283725,1.2495,174.24,174.14,11.84269368]
[1641015284131,1.2495,174.24,174.14,11.34269368]
[1641015284927,1.2495,174.24,174.14,11.60269368]
[1641015285428,1.2495,174.24,174.14,12.10269368]
[1641015291838,1.2495,174.24,174.14,11.84269368]
[1641015292038,1.2495,174.24,174.14,8.6134]
[1641015292632,1.7495,174.24,174.14,8.6134]
[1641015293038,1.7495,174.24,174.13,8.614]
[1641015293039,10.122,174.24,174.13,8.614]
[1641015293233,16.525,174.24,174.08,1.42669368]
[1641015293434,1.33533177,174.23,174.07,77.0364]
[1641015293833,2.09533177,174.23,174.07,77.0364]
[1641015294035,8.6174,174.15,174.08,30.56237124]
[1641015294440,8.6174,174.15,174.02,80.7184]
[1641015294637,1.3001,174.14,174.02,80.7184]
[1641015295043,9.9177,174.14,174.05,8.6173]
[1641015295239,1.3001,174.14,174.02,81.2184]
[1641015295437,1.3001,174.14,174.06,24.16492274]
[1641015296338,1.3001,174.14,174.06,24.66492274]
[1641015296741,1.3001,174.14,174.06,32.78172274]
[1641015297139,8.6173,174.15,174.06,32.78172274]
[1641015297339,8.6173,174.15,174.06,33.54172274]
[1641015297740,8.6173,174.15,174.06,33.04172274]
[1641015298241,8.6173,174.15,174.06,33.54172274]
[1641015298541,8.6173,174.15,174.06,33.04172274]
[1641015299139,8.6173,174.15,174.06,33.54172274]
[1641015299345,8.6173,174.15,174.06,33.04172274]
[1641015301844,8.6173,174.15,174.06,32.78172274]
[1641015302045,8.6173,174.15,174.06,24.16492274]
[1641015302445,8.6173,174.15,174.06,24.66492274]
[1641015303048,8.6173,174.15,174.06,24.16492274]
[1641015305447,8.6173,174.15,174.06,24.66492274]
[1641015305646,8.6173,174.15,174.06,24.16492274]
[1641015308248,8.6173,174.15,174.06,24.42492274]
[1641015308448,1.3043,174.17,174.06,24.42492274]
[1641015308648,4.91902524,174.21,174.06,31.42592274]
[1641015308850,3.26716595,174.24,174.06,31.92592274]
[1641015309049,4.52546595,174.24,174.06,31.92592274]
[1641015309250,4.52546595,174.24,174.06,40.54272274]
[1641015309650,13.13806595,174.24,174.11,28.7084]
[1641015309852,9.8709,174.24,174.11,29.2084]
[1641015310053,9.8709,174.24,174.11,29.4684]
[1641015310550,9.8709,174.24,174.13,31.57117259]
[1641015310950,9.8709,174.24,174.13,31.83117259]
[1641015311850,9.8709,174.24,174.13,31.57117259]
[1641015312051,10.1309,174.24,174.13,31.57117259]
[1641015312853,28.82,174.23,174.13,31.57117259]
[1641015313052,8.615,174.2,174.13,31.57117259]
[1641015313553,28.82,174.23,174.13,31.57117259]
[1641015313751,1.3591,174.22,174.13,31.57117259]
[1641015314153,8.6148,174.2,174.13,31.57117259]
[1641015314952,8.6148,174.2,174.09,1.3251]
[1641015315155,8.6148,174.2,174.08,78.1247]
[1641015315156,8.8748,174.2,174.08,78.1247]
[1641015315356,12.64196595,174.2,174.08,78.1247]
[1641015315553,11.88196595,174.2,174.08,78.1247]
[1641015315756,12.64196595,174.2,174.08,78.1247]
[1641015315953,12.64196595,174.2,174.09,29.6800115]
[1641015316156,9.79854832,174.19,174.09,29.6800115]
[1641015316455,9.79854832,174.19,174.09,30.1800115]
[1641015317455,8.6142,174.21,174.09,39.0556115]
[1641015317658,8.6142,174.21,174.1,1.2777]
[1641015318055,8.6142,174.21,174.1,1.5377]
[1641015318256,8.6142,174.21,174.1,2.0377]
[1641015318656,8.6142,174.21,174.13,8.614]
[1641015319258,8.6142,174.21,174.09,108.2574115]
[1641015319458,8.8742,174.21,174.09,108.2574115]
[1641015319658,8.6142,174.21,174.09,108.2574115]
[1641015319859,8.6142,174.21,174.09,108.5174115]
[1641015320058,32.08716595,174.24,174.09,108.5174115]
[1641015320059,8.6157,174.18,174.09,117.1331115]
[1641015320660,8.6157,174.18,174.09,116.8731115]
[1641015322062,9.8971,174.2,174.09,116.8731115]
[1641015322263,1.282,174.2,174.09,116.8731115]
[1641015322466,1.282,174.2,174.09,117.3731115]
[1641015322668,1.282,174.2,174.1,1.239]
[1641015322866,1.282,174.2,174.12,8.6146]
[1641015324467,9.8967,174.2,174.11,8.6151]
[1641015325067,10.1567,174.2,174.11,8.6151]
[1641015326668,1.542,174.2,174.11,8.6151]
[1641015327670,1.282,174.2,174.11,8.6151]
[1641015327870,5.87526595,174.26,174.11,9.3751]
[1641015328073,4.56246595,174.26,174.11,9.3751]
[1641015328671,1.2524,174.25,174.16,8.6127]
[1641015328872,1.2524,174.25,174.17,27.96531792]
[1641015329273,8.6132,174.23,174.17,27.96531792]
[1641015330075,0.5,174.23,174.17,27.96531792]
[1641015330275,9.1133,174.23,174.17,27.96531792]
[1641015330679,9.3733,174.23,174.17,27.96531792]
[1641015331775,1.2524,174.25,174.17,27.96531792]
[1641015331974,2.333395,174.23,174.17,33.33331792]
[1641015332201,2.333395,174.23,174.17,33.83331792]
[1641015332496,2.333395,174.23,174.18,1.42669368]
[1641015332696,2.333395,174.23,174.2,8.6086]
[1641015332897,2.333395,174.23,174.2,9.1086]
[1641015333098,2.333395,174.23,174.2,8.8686]
[1641015333299,1.551495,174.23,174.2,10.29529368]
[1641015341210,2.98086836,174.36,174.2,10.29529368]
[1641015341407,1.3584,174.36,174.2,10.29529368]
[1641015341606,1.3584,174.36,174.28,8.606]
[1641015341607,1.6184,174.36,174.28,8.606]
[1641015341806,1.6184,174.36,174.29,22.60227219]
[1641015342206,1.1184,174.36,174.29,22.60227219]
[1641015342415,0.26,174.36,174.29,22.60227219]
[1641015342706,1.5628,174.37,174.29,22.60227219]
[1641015343107,10.1692,174.37,174.29,22.60227219]
[1641015343308,9.9092,174.37,174.29,22.60227219]
[1641015343710,10.4092,174.37,174.29,22.60227219]
[1641015344712,10.6692,174.37,174.29,31.20877219]
[1641015345110,10.6692,174.37,174.29,22.60227219]
[1641015346612,2.0628,174.37,174.29,31.20857219]
[1641015347013,1.5628,174.37,174.29,31.20857219]
[1641015347917,1.3028,174.37,174.29,31.20857219]
[1641015348721,1.62246836,174.32,174.29,31.20857219]
[1641015349739,1.62246836,174.33,174.29,31.20857219]
[1641015350525,1.62246836,174.32,174.29,31.20857219]
[1641015351048,1.62246836,174.33,174.29,31.20857219]
[1641015351552,1.62246836,174.32,174.29,31.20857219]
[1641015352849,1.62246836,174.33,174.29,31.20857219]
[1641015354953,1.62246836,174.32,174.29,31.20857219]
[1641015355152,1.62246836,174.32,174.29,31.70857219]
[1641015355953,1.62246836,174.32,174.29,31.20857219]
[1641015356161,3.03219997,174.31,174.29,31.20857219]
[1641015356355,1.62246836,174.32,174.29,31.70857219]
[1641015356753,1.62246836,174.33,174.29,31.70857219]
[1641015357356,1.62246836,174.33,174.29,31.20857219]
[1641015357556,1.62246836,174.35,174.29,31.20857219]
[1641015357958,1.88246836,174.35,174.29,31.20857219]
[1641015358457,1.88246836,174.35,174.29,22.60227219]
[1641015358860,1.62246836,174.34,174.29,22.60227219]
[1641015359562,1.62246836,174.34,174.29,31.20877219]
[1641015360965,1.62246836,174.35,174.29,31.20877219]
[1641015364873,1.62246836,174.36,174.29,31.20877219]
[1641015369880,1.62246836,174.34,174.29,31.20877219]
[1641015370678,1.62246836,174.34,174.29,22.60227219]
[1641015370880,1.62246836,174.34,174.27,1.3267]
[1641015371682,1.62246836,174.34,174.27,9.9339]
[1641015371882,1.62246836,174.33,174.27,9.9339]
[1641015372484,1.62246836,174.32,174.27,1.3267]
[1641015372687,1.62246836,174.32,174.2,1.42669368]
[1641015372886,10.23106836,174.32,174.22,8.6091]
[1641015373686,1.62246836,174.3,174.23,23.57032833]
[1641015373887,1.62246836,174.3,174.23,32.17932833]
[1641015374690,7.36346836,174.3,174.2,1.42669368]
[1641015374891,8.12346836,174.3,174.18,75.2151]
[1641015375093,1.62246836,174.27,174.18,75.2151]
[1641015375691,1.62246836,174.27,174.19,23.03422458]
[1641015376396,1.62246836,174.27,174.19,31.90472458]
[1641015376596,1.62246836,174.26,174.19,31.90472458]
[1641015376800,1.62246836,174.26,174.2,1.3584]
[1641015376999,1.3317,174.28,174.2,1.3584]
[1641015377000,1.62246836,174.28,174.2,1.3584]
[1641015377217,1.62246836,174.28,174.2,1.6184]
[1641015377427,1.62246836,174.28,174.21,8.6094]
[1641015377921,1.62246836,174.28,174.21,9.3694]
[1641015378119,1.62246836,174.28,174.21,8.8694]
[1641015378521,1.62246836,174.29,174.21,8.8694]
[1641015379225,1.62246836,174.29,174.2,8.6101]
[1641015379422,1.62246836,174.29,174.2,9.844]
[1641015379620,1.62246836,174.29,174.2,10.104]
[1641015380020,1.62246836,174.28,174.2,10.104]
[1641015380524,1.62246836,174.28,174.2,1.2339]
[1641015381424,6.52650532,174.31,174.2,1.2339]
[1641015381425,1.62246836,174.27,174.2,1.2339]
[1641015381823,1.62246836,174.28,174.2,9.8439]
[1641015382026,1.62246836,174.28,174.2,10.1039]
[1641015382230,1.62246836,174.28,174.2,1.4939]
[1641015383025,1.62246836,174.28,174.2,10.1039]
[1641015383526,1.62246836,174.27,174.2,10.1039]
[1641015383925,1.62246836,174.3,174.2,10.1039]
[1641015385527,1.62246836,174.29,174.2,10.1039]
[1641015386727,1.62246836,174.29,174.2,1.2339]
[1641015387131,1.62246836,174.27,174.2,1.2339]
[1641015388736,10.23306836,174.28,174.2,1.4939]
[1641015389134,10.23306836,174.28,174.2,1.2339]
[1641015389332,10.23306836,174.28,174.2,1.4939]
[1641015389736,1.62246836,174.27,174.2,1.4939]
[1641015390434,1.62246836,174.28,174.2,10.1038]
[1641015393435,1.62246836,174.29,174.2,10.1038]